[Event "Torneo Benidorm Gran Hotel Bali 2022"]
[Site "Benidorm, Spain"]
[Date "2022.12.06"]
[Round "5.4"]
[White "Korneev, Oleg"]
[Black "Oswaldo Valentin, Requejo Cotrin"]
[Result "1-0"]
[ECO "C73"]
[WhiteElo "2481"]
[BlackElo "2248"]
[PlyCount "99"]
[EventDate "2022.12.03"]
[EventType "swiss"]
[EventRounds "9"]
[SourceTitle "Ajedrez en Madrid"]
[Source "lmi"]
[SourceDate "2022.12.03"]
[SourceVersion "1"]
[SourceVersionDate "2022.12.10"]
[SourceQuality "1"]
[TimeControl "90+30"]
[WhiteClock "0:02:24"]
[BlackClock "0:01:47"]

1. e4 {[%emt 0:00:00]} e5 {[%emt 0:00:00]} 2. Nf3 {[%emt 0:00:00]} Nc6 {[%emt 0:00:00]} 3. Bb5 {[%emt 0:00:00]} a6 {[%emt 0:00:00]} 4. Ba4 {[%emt 0:00:00]} d6 {[%emt 0:00:00]} 5. Bxc6+ {[%emt 0:00:00]} bxc6 {[%emt 0:00:00]} 6. d4 {[%emt 0:00:00]} exd4 {[%emt 0:00:00]} 7. Qxd4 {[%emt 0:00:00]} c5 {[%emt 0:00:00]} 8. Qd3 {[%emt 0:00:00]} Nf6 {[%emt 0:00:00]} 9. O-O {[%emt 0:00:00]} Be7 {[%emt 0:00:00]} 10. c4 {[%emt 0:00:00]} O-O {[%emt 0:00:00]} 11. Nc3 {[%emt 0:00:00]} Bg4 {[%emt 0:00:00]} 12. Bf4 {[%emt 0:00:00]} Bxf3 {[%emt 0:00:00]} 13. Qxf3 {[%emt 0:00:00]} Nd7 {[%emt 0:00:00]} 14. Rad1 {[%emt 0:00:00]} Bf6 {[%emt 0:00:00]} 15. b3 {[%emt 0:00:00]} Bxc3 {[%emt 0:00:00]} 16. Qxc3 {[%emt 0:00:00]} f6 {[%emt 0:00:00]} 17. b4 {[%emt 0:00:00]} cxb4 {[%emt 0:00:00]} 18. Qxb4 {[%emt 0:00:00]} Qe7 {[%emt 0:00:00]} 19. Qb7 {[%emt 0:00:00]} Nc5 {[%emt 0:00:00]} 20. Qd5+ {[%emt 0:00:00]} Qf7 {[%emt 0:00:00]} 21. f3 {[%emt 0:00:00]} Rab8 {[%emt 0:00:00]} 22. Rb1 {[%emt 0:00:00]} Qxd5 {[%emt 0:00:00]} 23. cxd5 {[%emt 0:00:00]} Rxb1 {[%emt 0:00:00]} 24. Rxb1 {[%emt 0:00:00]} f5 {[%emt 0:00:00]} 25. Be3 {[%emt 0:00:00]} Nd3 {[%emt 0:00:00]} 26. Rb3 {[%emt 0:00:00]} fxe4 {[%emt 0:01:39]} 27. fxe4 {[%emt 0:00:00]} Ne5 {[%emt 0:00:00]} 28. Bd4 {[%emt 0:00:00]} Nc4 {[%emt 0:00:00]} 29. h3 {[%emt 0:02:21]} Nd2 {[%emt 0:00:24]} 30. Rc3 {[%emt 0:07:32]} Rf1+ {[%emt 0:04:57]} 31. Kh2 {[%emt 0:00:01]} Rd1 {[%emt 0:01:02]} 32. Rxc7 {[%emt 0:01:45]} Nxe4 {[%emt 0:00:35]} 33. Bxg7 {[%emt 0:00:00]} h5 {[%emt 0:03:15]} 34. Re7 {[%emt 0:02:21]} Nd2 {[%emt 0:01:25]} 35. Kg3 {[%emt 0:00:18]} Nc4 {[%emt 0:00:47]} 36. Kh4 {[%emt 0:00:47]} Rxd5 {[%emt 0:00:22]} 37. Bf6 {[%emt 0:02:04]} Rf5 {[%emt 0:00:46]} 38. Bg5 {[%emt 0:00:55]} Rf2 {[%emt 0:03:26]} 39. g3 {[%emt 0:00:05]} Rxa2 {[%emt 0:00:48]} 40. Kxh5 {[%emt 0:00:13]} Ne5 {[%emt 0:00:00]} 41. Bf4 {[%emt 0:01:52]} Ra5 42. Kh6 {[%emt 0:00:50]} Kf8 {[%emt 0:01:19]} 43. Ra7 {[%emt 0:01:05]} Ra1 {[%emt 0:00:28]} 44. h4 {[%emt 0:00:00]} a5 {[%emt 0:00:38]} 45. h5 {[%emt 0:00:32]} a4 {[%emt 0:00:04]} 46. Bxe5 dxe5 {[%emt 0:00:09]} 47. g4 {[%emt 0:00:08]} e4 {[%emt 0:01:31]} 48. g5 {[%emt 0:00:03]} Rd1 {[%emt 0:00:14]} 49. g6 {[%emt 0:01:06]} Rd8 {[%emt 0:00:24]} 50. Kh7 {[%emt 0:00:08]} 1-0

[Event "Torneo Benidorm Gran Hotel Bali 2022"]
[Site "Benidorm, Spain"]
[Date "2022.12.06"]
[Round "5.5"]
[White "Pallardo Lozoya, Jose Vicente"]
[Black "Valdepenas Octavio, Javier"]
[Result "0-1"]
[ECO "C77"]
[WhiteElo "2367"]
[BlackElo "2216"]
[PlyCount "110"]
[EventDate "2022.12.03"]
[EventType "swiss"]
[EventRounds "9"]
[SourceTitle "Ajedrez en Madrid"]
[Source "lmi"]
[SourceDate "2022.12.03"]
[SourceVersion "1"]
[SourceVersionDate "2022.12.10"]
[SourceQuality "1"]
[TimeControl "90+30"]
[WhiteClock "0:02:29"]
[BlackClock "0:01:56"]

1. e4 {[%emt 0:00:00]} e5 {[%emt 0:00:00]} 2. Nf3 {[%emt 0:00:00]} Nc6 {[%emt 0:00:00]} 3. Bb5 {[%emt 0:00:00]} a6 {[%emt 0:00:00]} 4. Ba4 {[%emt 0:00:00]} Nf6 {[%emt 0:00:00]} 5. d3 {[%emt 0:00:00]} d6 {[%emt 0:00:00]} 6. c3 {[%emt 0:00:00]} g6 {[%emt 0:00:00]} 7. Nbd2 {[%emt 0:00:00]} Bg7 {[%emt 0:00:00]} 8. Nf1 {[%emt 0:00:00]} O-O {[%emt 0:00:00]} 9. Ng3 {[%emt 0:00:00]} Re8 {[%emt 0:00:00]} 10. O-O {[%emt 0:00:00]} b5 {[%emt 0:00:00]} 11. Bc2 {[%emt 0:00:00]} a5 {[%emt 0:00:00]} 12. h3 {[%emt 0:00:00]} h6 {[%emt 0:00:00]} 13. Re1 {[%emt 0:00:00]} Bb7 {[%emt 0:00:00]} 14. Nh2 {[%emt 0:00:00]} a4 {[%emt 0:00:00]} 15. a3 {[%emt 0:00:00]} Na5 {[%emt 0:00:00]} 16. f4 {[%emt 0:00:00]} exf4 {[%emt 0:00:00]} 17. Bxf4 {[%emt 0:00:00]} c5 {[%emt 0:00:00]} 18. Qd2 {[%emt 0:00:00]} Kh7 {[%emt 0:00:00]} 19. Rad1 {[%emt 0:00:00]} Rc8 {[%emt 0:00:00]} 20. Bb1 {[%emt 0:00:00]} Nb3 {[%emt 0:00:00]} 21. Qf2 {[%emt 0:00:00]} b4 {[%emt 0:00:00]} 22. axb4 {[%emt 0:00:00]} cxb4 {[%emt 0:00:00]} 23. cxb4 {[%emt 0:00:00]} Nd7 {[%emt 0:00:00]} 24. Be3 {[%emt 0:02:06]} Ne5 {[%emt 0:00:00]} 25. Kh1 {[%emt 0:05:24]} Qd7 {[%emt 0:00:00]} 26. d4 {[%emt 0:01:44]} Nc4 {[%emt 0:00:00]} 27. Ng4 {[%emt 0:01:00]} Nxe3 {[%emt 0:00:00]} 28. Rxe3 {[%emt 0:00:04]} Nxd4 {[%emt 0:05:02]} 29. Red3 {[%emt 0:02:43]} Nb5 {[%emt 0:05:43]} 30. e5 {[%emt 0:00:19]} Rxe5 {[%emt 0:00:42]} 31. Nxe5 {[%emt 0:02:33]} Bxe5 {[%emt 0:00:05]} 32. Kg1 {[%emt 0:00:29]} Rc4 {[%emt 0:02:41]} 33. Nh5 {[%emt 0:01:01]} Qe7 {[%emt 0:00:42]} 34. Re1 {[%emt 0:00:35]} Be4 {[%emt 0:01:13]} 35. Rxe4 {[%emt 0:00:29]} Rxe4 {[%emt 0:00:07]} 36. Rf3 {[%emt 0:00:24]} Bd4 {[%emt 0:01:08]} 37. Nf6+ {[%emt 0:00:29]} Qxf6 {[%emt 0:01:49]} 38. Rxf6 {[%emt 0:00:04]} Re1+ {[%emt 0:00:22]} 39. Kh2 {[%emt 0:00:04]} Bxf2 {[%emt 0:00:03]} 40. Rxf7+ {[%emt 0:00:21]} Kg8 {[%emt 0:00:09]} 41. Bxg6 {[%emt 0:00:08]} Bd4 {[%emt 0:00:21]} 42. Rb7 {[%emt 0:00:20]} Be5+ {[%emt 0:00:30]} 43. g3 {[%emt 0:00:05]} Re2+ {[%emt 0:00:15]} 44. Kg1 {[%emt 0:01:06]} Rxb2 {[%emt 0:01:59]} 45. Rxb5 {[%emt 0:01:51]} a3 {[%emt 0:00:12]} 46. Be4 {[%emt 0:00:32]} a2 {[%emt 0:00:29]} 47. Bd5+ {[%emt 0:00:30]} Kg7 {[%emt 0:00:28]} 48. Bxa2 {[%emt 0:00:30]} Rxa2 {[%emt 0:00:05]} 49. Ra5 {[%emt 0:00:04]} Rb2 {[%emt 0:00:45]} 50. Ra3 {[%emt 0:00:21]} Rxb4 {[%emt 0:00:09]} 51. Kf2 {[%emt 0:00:03]} h5 {[%emt 0:00:28]} 52. Kf3 {[%emt 0:00:33]} Rc4 {[%emt 0:00:25]} 53. Ra7+ {[%emt 0:00:32]} Kg6 {[%emt 0:00:06]} 54. g4 {[%emt 0:00:02]} Rc3+ {[%emt 0:00:58]} 55. Ke4 {[%emt 0:00:05]} h4 {[%emt 0:00:08]} 0-1

[Event "Torneo Benidorm Gran Hotel Bali 2022"]
[Site "Benidorm, Spain"]
[Date "2022.12.06"]
[Round "5.6"]
[White "Mingarro Carceller, Sergi"]
[Black "Jordan Martinez, Miguel"]
[Result "1-0"]
[ECO "C11"]
[WhiteElo "2330"]
[BlackElo "2185"]
[PlyCount "75"]
[EventDate "2022.12.03"]
[EventType "swiss"]
[EventRounds "9"]
[SourceTitle "Ajedrez en Madrid"]
[Source "lmi"]
[SourceDate "2022.12.03"]
[SourceVersion "1"]
[SourceVersionDate "2022.12.10"]
[SourceQuality "1"]
[TimeControl "90+30"]
[WhiteClock "0:05:30"]
[BlackClock "0:04:10"]

1. e4 {[%emt 0:00:00]} e6 {[%emt 0:00:00]} 2. d4 {[%emt 0:00:00]} d5 {[%emt 0:00:00]} 3. Nc3 {[%emt 0:00:00]} Nf6 {[%emt 0:00:00]} 4. e5 {[%emt 0:00:00]} Nfd7 {[%emt 0:00:00]} 5. f4 {[%emt 0:00:00]} c5 {[%emt 0:00:00]} 6. Nf3 {[%emt 0:00:00]} Be7 {[%emt 0:00:00]} 7. Be3 {[%emt 0:00:00]} b6 {[%emt 0:00:00]} 8. Qd2 {[%emt 0:00:00]} Ba6 {[%emt 0:00:00]} 9. Bxa6 {[%emt 0:00:00]} Nxa6 {[%emt 0:00:00]} 10. O-O {[%emt 0:00:00]} g6 {[%emt 0:00:00]} 11. Ne2 {[%emt 0:00:00]} cxd4 {[%emt 0:00:00]} 12. Nexd4 {[%emt 0:00:00]} Qc7 {[%emt 0:00:00]} 13. Rac1 {[%emt 0:00:00]} O-O {[%emt 0:00:00]} 14. Qe2 {[%emt 0:00:00]} Nb4 {[%emt 0:00:00]} 15. a3 {[%emt 0:00:00]} Nc6 {[%emt 0:00:00]} 16. Nb5 {[%emt 0:00:00]} Qb7 {[%emt 0:00:00]} 17. c4 {[%emt 0:00:00]} dxc4 {[%emt 0:00:00]} 18. Rxc4 {[%emt 0:00:00]} a6 {[%emt 0:00:00]} 19. Nd6 {[%emt 0:00:00]} Bxd6 {[%emt 0:00:00]} 20. exd6 {[%emt 0:00:00]} b5 {[%emt 0:00:00]} 21. Rc2 {[%emt 0:00:00]} Rad8 {[%emt 0:00:00]} 22. Rfc1 {[%emt 0:00:00]} Na5 {[%emt 0:00:00]} 23. Rc7 {[%emt 0:00:00]} Qe4 {[%emt 0:00:00]} 24. Ng5 {[%emt 0:00:00]} Qf5 {[%emt 0:00:00]} 25. g4 {[%emt 0:00:00]} Qf6 {[%emt 0:00:00]} 26. Ne4 {[%emt 0:00:00]} Qg7 {[%emt 0:00:00]} 27. g5 {[%emt 0:00:00]} f5 {[%emt 0:01:50]} 28. gxf6 {[%emt 0:00:00]} Qh6 {[%emt 0:00:10]} 29. Ng5 {[%emt 0:00:00]} Nc4 {[%emt 0:05:54]} 30. R1xc4 {[%emt 0:00:00]} bxc4 {[%emt 0:01:09]} 31. Bd4 {[%emt 0:00:00]} e5 {[%emt 0:00:59]} 32. Bxe5 {[%emt 0:04:08]} Qh4 {[%emt 0:02:57]} 33. Qxc4+ {[%emt 0:07:51]} Kh8 {[%emt 0:00:09]} 34. Rxd7 {[%emt 0:00:22]} Qe1+ {[%emt 0:01:38]} 35. Kg2 {[%emt 0:00:43]} Qd2+ {[%emt 0:00:11]} 36. Kf3 {[%emt 0:01:05]} Qd1+ {[%emt 0:00:25]} 37. Kf2 {[%emt 0:00:42]} Qd2+ {[%emt 0:00:28]} 38. Qe2 {[%emt 0:00:09]} 1-0

[Event "Torneo Benidorm Gran Hotel Bali 2022"]
[Site "Benidorm, Spain"]
[Date "2022.12.06"]
[Round "5.8"]
[White "Tscharotschkin, Michael"]
[Black "Aditya, Varun Gampa"]
[Result "1/2-1/2"]
[ECO "B22"]
[WhiteElo "2137"]
[BlackElo "2249"]
[PlyCount "143"]
[EventDate "2022.12.03"]
[EventType "swiss"]
[EventRounds "9"]
[SourceTitle "Ajedrez en Madrid"]
[Source "lmi"]
[SourceDate "2022.12.03"]
[SourceVersion "1"]
[SourceVersionDate "2022.12.10"]
[SourceQuality "1"]
[TimeControl "90+30"]
[WhiteClock "0:12:13"]
[BlackClock "0:12:39"]

1. e4 {[%emt 0:00:00]} c5 {[%emt 0:00:00]} 2. c3 {[%emt 0:00:00]} d5 {[%emt 0:00:00]} 3. exd5 {[%emt 0:00:00]} Qxd5 {[%emt 0:00:00]} 4. d4 {[%emt 0:00:00]} e6 {[%emt 0:00:00]} 5. Nf3 {[%emt 0:00:00]} Nf6 {[%emt 0:00:00]} 6. Na3 {[%emt 0:00:00]} Qd8 {[%emt 0:00:00]} 7. Nc2 {[%emt 0:00:00]} Be7 {[%emt 0:00:00]} 8. Bg5 {[%emt 0:00:00]} O-O {[%emt 0:00:00]} 9. Bd3 {[%emt 0:00:00]} Nbd7 {[%emt 0:00:00]} 10. O-O {[%emt 0:00:00]} b6 {[%emt 0:00:00]} 11. Ne5 {[%emt 0:00:00]} Bb7 {[%emt 0:00:00]} 12. Qe2 {[%emt 0:00:00]} cxd4 {[%emt 0:00:00]} 13. Nxd7 {[%emt 0:00:00]} Qxd7 {[%emt 0:00:00]} 14. Nxd4 {[%emt 0:00:00]} Qd5 {[%emt 0:00:00]} 15. Nf3 {[%emt 0:00:00]} h6 {[%emt 0:00:00]} 16. Bxf6 {[%emt 0:00:00]} Bxf6 {[%emt 0:00:00]} 17. Rfe1 {[%emt 0:00:00]} Rfd8 {[%emt 0:00:00]} 18. Be4 {[%emt 0:00:00]} Qxe4 {[%emt 0:00:00]} 19. Qxe4 {[%emt 0:00:00]} Bxe4 {[%emt 0:00:00]} 20. Rxe4 {[%emt 0:00:00]} Rd5 {[%emt 0:00:00]} 21. Kf1 {[%emt 0:00:00]} Rad8 {[%emt 0:00:00]} 22. Rc1 {[%emt 0:00:00]} Rb5 {[%emt 0:00:00]} 23. Rc2 {[%emt 0:00:00]} a5 {[%emt 0:00:00]} 24. a4 {[%emt 0:00:00]} Rc5 {[%emt 0:00:00]} 25. Rd2 {[%emt 0:00:00]} Rdc8 {[%emt 0:00:00]} 26. Rd6 {[%emt 0:00:00]} b5 {[%emt 0:00:00]} 27. Ra6 {[%emt 0:00:00]} bxa4 {[%emt 0:00:00]} 28. Rxa4 {[%emt 0:00:00]} Rb5 {[%emt 0:00:00]} 29. Ra2 {[%emt 0:00:00]} Rcb8 {[%emt 0:00:00]} 30. Nd4 {[%emt 0:00:00]} Rxb2 {[%emt 0:00:00]} 31. R6xa5 {[%emt 0:00:00]} Rb1+ {[%emt 0:00:00]} 32. Ke2 {[%emt 0:00:00]} Rc1 {[%emt 0:00:00]} 33. Ra8 {[%emt 0:00:00]} Rxa8 {[%emt 0:00:00]} 34. Rxa8+ {[%emt 0:00:00]} Kh7 {[%emt 0:00:00]} 35. Ra3 {[%emt 0:00:00]} Kg6 {[%emt 0:00:00]} 36. g3 {[%emt 0:00:00]} e5 {[%emt 0:00:00]} 37. Nf3 {[%emt 0:00:00]} Kf5 {[%emt 0:00:00]} 38. h3 {[%emt 0:00:00]} Rc2+ {[%emt 0:00:00]} 39. Ke1 {[%emt 0:00:00]} Ke4 {[%emt 0:03:50]} 40. Nd2+ {[%emt 0:00:00]} Kd3 {[%emt 0:01:45]} 41. c4+ {[%emt 0:00:23]} Kd4 {[%emt 0:00:21]} 42. Ra7 {[%emt 0:03:18]} e4 {[%emt 0:06:29]} 43. Rd7+ {[%emt 0:02:00]} Ke5 {[%emt 0:00:07]} 44. Rd5+ {[%emt 0:01:11]} Ke6 {[%emt 0:00:03]} 45. Nxe4 {[%emt 0:00:28]} Rxc4 {[%emt 0:00:34]} 46. Nxf6 {[%emt 0:00:13]} Kxf6 {[%emt 0:00:35]} 47. h4 {[%emt 0:00:48]} Rc2 {[%emt 0:00:39]} 48. Ra5 {[%emt 0:00:17]} Rb2 {[%emt 0:00:10]} 49. Kf1 {[%emt 0:00:15]} Rb1+ {[%emt 0:00:37]} 50. Kg2 {[%emt 0:00:18]} Re1 {[%emt 0:00:01]} 51. Kf3 {[%emt 0:00:16]} Re5 {[%emt 0:00:22]} 52. Ra6+ {[%emt 0:00:54]} Ke7 {[%emt 0:00:24]} 53. Rb6 {[%emt 0:00:24]} f6 {[%emt 0:00:41]} 54. Rb7+ {[%emt 0:01:36]} Kf8 {[%emt 0:00:08]} 55. g4 {[%emt 0:00:30]} h5 {[%emt 0:00:33]} 56. Kg3 {[%emt 0:01:07]} hxg4 {[%emt 0:01:25]} 57. Kxg4 {[%emt 0:00:09]} Kg8 {[%emt 0:00:16]} 58. Rb4 {[%emt 0:01:23]} Kh7 {[%emt 0:00:05]} 59. Kg3 {[%emt 0:00:20]} Kg6 {[%emt 0:00:08]} 60. Ra4 {[%emt 0:00:22]} Re1 {[%emt 0:00:21]} 61. Rb4 {[%emt 0:03:09]} Kh5 {[%emt 0:01:03]} 62. Rb5+ {[%emt 0:00:39]} Kg6 {[%emt 0:00:18]} 63. Rb4 {[%emt 0:00:18]} Rg1+ {[%emt 0:00:35]} 64. Kh2 {[%emt 0:00:24]} Rf1 {[%emt 0:00:16]} 65. Kg2 {[%emt 0:00:15]} Ra1 {[%emt 0:00:05]} 66. Kg3 {[%emt 0:00:26]} Ra3+ {[%emt 0:00:11]} 67. Kg2 {[%emt 0:00:44]} Kh5 {[%emt 0:00:12]} 68. Rb7 {[%emt 0:01:10]} g6 {[%emt 0:00:28]} 69. Rb4 {[%emt 0:00:24]} f5 {[%emt 0:00:30]} 70. Rc4 {[%emt 0:00:47]} Ra1 {[%emt 0:00:54]} 71. Rb4 {[%emt 0:00:22]} Re1 {[%emt 0:00:15]} 72. Ra4 {[%emt 0:00:27]} 1/2-1/2

[Event "Torneo Benidorm Gran Hotel Bali 2022"]
[Site "Benidorm, Spain"]
[Date "2022.12.06"]
[Round "5.9"]
[White "Granero Roca, Antonio"]
[Black "Schaffert, Walter"]
[Result "1-0"]
[ECO "E90"]
[WhiteElo "2345"]
[BlackElo "2037"]
[PlyCount "71"]
[EventDate "2022.12.03"]
[EventType "swiss"]
[EventRounds "9"]
[SourceTitle "Ajedrez en Madrid"]
[Source "lmi"]
[SourceDate "2022.12.03"]
[SourceVersion "1"]
[SourceVersionDate "2022.12.10"]
[SourceQuality "1"]
[TimeControl "90+30"]
[WhiteClock "0:22:50"]
[BlackClock "0:01:06"]

1. d4 {[%emt 0:00:00]} Nf6 {[%emt 0:00:00]} 2. c4 {[%emt 0:00:00]} g6 {[%emt 0:00:00]} 3. Nc3 {[%emt 0:00:00]} Bg7 {[%emt 0:00:00]} 4. e4 {[%emt 0:00:00]} O-O {[%emt 0:00:00]} 5. h3 {[%emt 0:00:00]} d6 {[%emt 0:00:00]} 6. Nf3 {[%emt 0:00:00]} e5 {[%emt 0:00:00]} 7. d5 {[%emt 0:00:00]} a5 {[%emt 0:00:00]} 8. Be3 {[%emt 0:00:00]} Na6 {[%emt 0:00:00]} 9. g4 {[%emt 0:00:00]} Bd7 {[%emt 0:00:00]} 10. Be2 {[%emt 0:00:00]} Nc5 {[%emt 0:00:00]} 11. Nd2 {[%emt 0:00:00]} a4 {[%emt 0:00:00]} 12. g5 {[%emt 0:00:00]} Ne8 {[%emt 0:00:00]} 13. Qc2 {[%emt 0:00:00]} c6 {[%emt 0:00:00]} 14. h4 {[%emt 0:00:00]} Qa5 {[%emt 0:00:00]} 15. Rb1 {[%emt 0:00:00]} f5 {[%emt 0:00:00]} 16. f3 {[%emt 0:00:00]} Qd8 {[%emt 0:00:00]} 17. b4 {[%emt 0:00:00]} axb3 {[%emt 0:00:00]} 18. Nxb3 {[%emt 0:00:00]} Nxb3 {[%emt 0:00:00]} 19. Rxb3 {[%emt 0:00:00]} cxd5 {[%emt 0:00:00]} 20. cxd5 {[%emt 0:00:00]} Qc8 {[%emt 0:00:00]} 21. Qb2 {[%emt 0:00:00]} fxe4 {[%emt 0:00:00]} 22. Nxe4 {[%emt 0:00:00]} Rf7 {[%emt 0:00:00]} 23. Kf2 {[%emt 0:00:00]} Bg4 {[%emt 0:00:00]} 24. Bb6 {[%emt 0:00:00]} Qf5 {[%emt 0:00:00]} 25. Kg2 {[%emt 0:00:00]} Ra4 {[%emt 0:00:00]} 26. Ng3 {[%emt 0:00:00]} Qd7 {[%emt 0:06:25]} 27. fxg4 {[%emt 0:00:00]} Nc7 {[%emt 0:04:39]} 28. Qd2 {[%emt 0:00:00]} Rff4 {[%emt 0:02:15]} 29. Rc1 {[%emt 0:00:00]} Na6 {[%emt 0:00:52]} 30. Qc2 {[%emt 0:00:00]} Nc5 {[%emt 0:01:02]} 31. Bxc5 {[%emt 0:00:00]} dxc5 {[%emt 0:00:12]} 32. Qxc5 {[%emt 0:00:00]} Bf8 {[%emt 0:00:45]} 33. d6 {[%emt 0:00:00]} Rxa2 {[%emt 0:00:11]} 34. Qd5+ {[%emt 0:00:00]} Rf7 {[%emt 0:00:50]} 35. Kh3 {[%emt 0:00:00]} Qxd6 {[%emt 0:00:43]} 36. Bc4 {[%emt 0:00:00]} 1-0

[Event "Torneo Benidorm Gran Hotel Bali 2022"]
[Site "Benidorm, Spain"]
[Date "2022.12.06"]
[Round "5.10"]
[White "Shaik, Sumer Arsh"]
[Black "Lacrosse, Marc"]
[Result "1/2-1/2"]
[ECO "D36"]
[WhiteElo "2290"]
[BlackElo "2043"]
[PlyCount "101"]
[EventDate "2022.12.03"]
[EventType "swiss"]
[EventRounds "9"]
[SourceTitle "Ajedrez en Madrid"]
[Source "lmi"]
[SourceDate "2022.12.03"]
[SourceVersion "1"]
[SourceVersionDate "2022.12.10"]
[SourceQuality "1"]
[TimeControl "90+30"]
[WhiteClock "0:00:38"]
[BlackClock "0:00:50"]

1. d4 {[%emt 0:00:00]} d5 {[%emt 0:00:00]} 2. c4 {[%emt 0:00:00]} e6 {[%emt 0:00:00]} 3. Nc3 {[%emt 0:00:00]} Nf6 {[%emt 0:00:00]} 4. cxd5 {[%emt 0:00:00]} exd5 {[%emt 0:00:00]} 5. Bg5 {[%emt 0:00:00]} c6 {[%emt 0:00:00]} 6. e3 {[%emt 0:00:00]} Nbd7 {[%emt 0:00:00]} 7. Bd3 {[%emt 0:00:00]} Be7 {[%emt 0:00:00]} 8. Nge2 {[%emt 0:00:00]} O-O {[%emt 0:00:00]} 9. Qc2 {[%emt 0:00:00]} Re8 {[%emt 0:00:00]} 10. O-O {[%emt 0:00:00]} Nf8 {[%emt 0:00:00]} 11. f3 {[%emt 0:00:00]} Ng6 {[%emt 0:00:00]} 12. Rad1 {[%emt 0:00:00]} Be6 {[%emt 0:00:00]} 13. h3 {[%emt 0:00:00]} Rc8 {[%emt 0:00:00]} 14. Kh1 {[%emt 0:00:00]} Qc7 {[%emt 0:00:00]} 15. f4 {[%emt 0:00:00]} Bd7 {[%emt 0:00:00]} 16. f5 {[%emt 0:00:00]} Nf8 {[%emt 0:00:00]} 17. g4 {[%emt 0:00:00]} h6 {[%emt 0:00:00]} 18. Bf4 {[%emt 0:00:00]} Bd6 {[%emt 0:00:00]} 19. Ng1 {[%emt 0:00:00]} Bxf4 {[%emt 0:00:00]} 20. exf4 {[%emt 0:00:00]} c5 {[%emt 0:00:00]} 21. Qf2 {[%emt 0:00:00]} Ne4 {[%emt 0:00:00]} 22. Bxe4 {[%emt 0:00:51]} dxe4 {[%emt 0:00:00]} 23. d5 {[%emt 0:01:05]} e3 {[%emt 0:00:00]} 24. Qf3 {[%emt 0:02:20]} b5 {[%emt 0:00:00]} 25. Rfe1 {[%emt 0:00:38]} b4 {[%emt 0:04:06]} 26. Ne4 {[%emt 0:00:24]} Qa5 {[%emt 0:01:35]} 27. Nd6 {[%emt 0:05:33]} Qxa2 {[%emt 0:00:26]} 28. Nxe8 {[%emt 0:00:09]} Rxe8 {[%emt 0:01:02]} 29. Rxe3 {[%emt 0:00:23]} Qxb2 {[%emt 0:01:15]} 30. Rxe8 {[%emt 0:00:41]} Bxe8 {[%emt 0:00:07]} 31. Qe3 {[%emt 0:03:22]} Ba4 {[%emt 0:01:15]} 32. Rd2 {[%emt 0:00:53]} Qc1 {[%emt 0:00:33]} 33. Kh2 {[%emt 0:00:55]} c4 {[%emt 0:02:37]} 34. Ne2 {[%emt 0:00:03]} Qe1 {[%emt 0:00:40]} 35. g5 {[%emt 0:00:54]} hxg5 {[%emt 0:01:47]} 36. fxg5 {[%emt 0:00:04]} c3 {[%emt 0:00:19]} 37. Rd3 {[%emt 0:00:16]} c2 {[%emt 0:01:18]} 38. g6 {[%emt 0:00:50]} fxg6 {[%emt 0:01:44]} 39. fxg6 {[%emt 0:00:19]} Nxg6 {[%emt 0:00:51]} 40. Qe6+ {[%emt 0:00:59]} Kh7 {[%emt 0:00:12]} 41. Rg3 {[%emt 0:00:48]} Qxe2+ {[%emt 0:01:32]} 42. Qxe2 {[%emt 0:00:01]} c1=Q {[%emt 0:00:23]} 43. Qh5+ {[%emt 0:00:02]} Qh6 {[%emt 0:00:15]} 44. Qf5 {[%emt 0:01:11]} b3 {[%emt 0:00:44]} 45. d6 {[%emt 0:00:48]} b2 {[%emt 0:00:34]} 46. h4 {[%emt 0:00:22]} Bd7 {[%emt 0:00:32]} 47. Qe4 {[%emt 0:00:35]} Bc6 {[%emt 0:00:40]} 48. Qc2 {[%emt 0:00:25]} Bd7 {[%emt 0:00:23]} 49. Kg2 {[%emt 0:00:26]} Qh5 {[%emt 0:00:34]} 50. Rg5 {[%emt 0:00:37]} Qh6 {[%emt 0:00:16]} 51. Rg3 {[%emt 0:00:28]} 1/2-1/2

[Event "Torneo Benidorm Gran Hotel Bali 2022"]
[Site "Benidorm, Spain"]
[Date "2022.12.06"]
[Round "5.11"]
[White "Raghav, Srivathsav V"]
[Black "Bendayan Claros, Aaron"]
[Result "1-0"]
[ECO "A01"]
[WhiteElo "2059"]
[BlackElo "2232"]
[PlyCount "55"]
[EventDate "2022.12.03"]
[EventType "swiss"]
[EventRounds "9"]
[SourceTitle "Ajedrez en Madrid"]
[Source "lmi"]
[SourceDate "2022.12.03"]
[SourceVersion "1"]
[SourceVersionDate "2022.12.10"]
[SourceQuality "1"]
[TimeControl "90+30"]
[WhiteClock "0:55:55"]
[BlackClock "0:08:52"]

1. b3 {[%emt 0:00:00]} d5 {[%emt 0:00:00]} 2. Bb2 {[%emt 0:00:00]} Nf6 {[%emt 0:00:00]} 3. g3 {[%emt 0:00:00]} e6 {[%emt 0:00:00]} 4. Bg2 {[%emt 0:00:00]} Be7 {[%emt 0:00:00]} 5. e3 {[%emt 0:00:00]} O-O {[%emt 0:00:00]} 6. Ne2 {[%emt 0:00:11]} b6 {[%emt 0:00:00]} 7. O-O {[%emt 0:00:00]} Bb7 {[%emt 0:00:00]} 8. f4 {[%emt 0:00:00]} Nbd7 {[%emt 0:00:00]} 9. h3 {[%emt 0:00:00]} c5 {[%emt 0:00:00]} 10. d3 {[%emt 0:00:00]} Qc7 {[%emt 0:00:00]} 11. Nd2 {[%emt 0:00:00]} e5 {[%emt 0:00:00]} 12. g4 {[%emt 0:00:00]} exf4 {[%emt 0:00:00]} 13. Nxf4 {[%emt 0:00:00]} h6 {[%emt 0:00:00]} 14. h4 {[%emt 0:00:00]} Nh7 {[%emt 0:00:00]} 15. Qe1 {[%emt 0:00:00]} d4 {[%emt 0:00:00]} 16. Bxb7 {[%emt 0:00:00]} Qxb7 {[%emt 0:00:00]} 17. exd4 {[%emt 0:00:00]} Bf6 {[%emt 0:00:00]} 18. Ne4 {[%emt 0:00:00]} Bxd4+ {[%emt 0:00:00]} 19. Bxd4 {[%emt 0:00:00]} cxd4 {[%emt 0:00:00]} 20. Qf2 {[%emt 0:00:00]} Ne5 {[%emt 0:00:00]} 21. Qxd4 {[%emt 0:00:00]} Nxg4 {[%emt 0:00:00]} 22. Nh5 {[%emt 0:00:00]} f5 {[%emt 0:00:00]} 23. Nd6 {[%emt 0:00:00]} Qc7 {[%emt 0:00:00]} 24. Qd5+ {[%emt 0:00:00]} Kh8 {[%emt 0:00:00]} 25. Nf4 {[%emt 0:00:00]} Nhf6 {[%emt 0:00:00]} 26. Ng6+ {[%emt 0:00:00]} Kh7 {[%emt 0:00:00]} 27. Qxf5 {[%emt 0:00:00]} Rfd8 {[%emt 0:06:08]} 28. Ne7+ {[%emt 0:00:00]} 1-0